bitfinex-derivatives/quotes_SOLF0:USTF0_20241222
["timestamp","ask_amount","ask_price","bid_price","bid_amount"]
[1734861931459,13.99201024,185.85,185.75,2.78]
[1734861932061,22.79671262,185.85,185.8,2.6927]
[1734861932355,22.79671262,185.85,185.75,2.78]
[1734861932860,22.79671262,185.88,185.75,2.78]
[1734861933457,22.79671262,185.88,185.81,2.6925]
[1734861934055,22.79671262,185.88,185.82,2.6925]
[1734861934458,22.79671262,185.88,185.75,2.78]
[1734861935360,22.79671262,185.88,185.82,2.6924]
[1734861935554,22.79671262,185.88,185.8,2.78]
[1734861935955,22.79671262,185.88,185.76,2.78]
[1734861936664,22.79671262,185.88,185.81,2.6926]
[1734861936963,2.78,185.9,185.76,2.78]
[1734861937164,26.16861262,185.91,185.76,2.78]
[1734861938558,26.16861262,185.91,185.86,2.6919]
[1734861938963,3.3719,185.91,185.86,2.6919]
[1734861939263,3.3719,185.91,185.87,2.6917]
[1734861939660,3.3719,185.91,185.81,2.78]
[1734861940668,3.3719,185.91,185.89,2.6914]
[1734861941459,112.99351871,185.92,185.9,2.6912]
[1734861941660,22.79671262,186.0,185.86,2.82]
[1734861941957,5.0766,186.02,185.87,25.61671262]
[1734861942156,3.3421,186.02,186.0,2.6898]
[1734861942566,1.7122,186.02,186.0,2.6898]
[1734861942762,115.22097957,186.06,186.04,2.6892]
[1734861943268,115.22097957,186.06,186.02,2.6894]
[1734861943663,115.22097957,186.06,185.95,2.82]
[1734861943863,115.22097957,186.06,186.04,2.6893]
[1734861944766,22.79671262,186.12,186.08,2.6887]
[1734861944962,22.79671262,186.15,186.0,2.82]
[1734861945166,2.82,186.14,186.0,2.82]
[1734861945466,22.79671262,186.15,186.12,2.6881]
[1734861945656,25.61671262,186.15,186.12,2.6881]
[1734861945862,4.9194,186.17,186.06,2.8]
[1734861946363,3.3315,186.17,186.06,2.8]
[1734861946563,22.79671262,186.23,186.08,22.79671262]
[1734861946865,27.71611262,186.26,186.08,22.79671262]
[1734861947067,2.8,186.25,186.11,22.79671262]
[1734861947264,2.8,186.25,186.12,2.8]
[1734861947573,2.8,186.25,186.23,2.6865]
[1734861947767,1.6415,186.26,186.23,2.6865]
[1734861948267,1.6415,186.26,186.21,2.6867]
[1734861948572,24.43821262,186.26,186.13,2.8]
[1734861949263,22.79671262,186.23,186.11,2.8]
[1734861949470,2.8,186.22,186.11,2.8]
[1734861951065,5.4867,186.22,186.15,2.6877]
[1734861951267,2.8,186.22,186.11,2.8]
[1734861952972,2.8,186.22,186.05,1.5698]
[1734861953180,22.79671262,186.2,186.12,2.6881]
[1734861953365,3.3375,186.19,186.12,2.6881]
[1734861953573,3.3375,186.19,186.08,2.8]
[1734861953772,3.3375,186.19,186.13,2.6879]
[1734861953975,3.3375,186.19,186.08,2.8]
[1734861954278,6.0246,186.19,186.08,2.8]
[1734861954476,6.0246,186.19,186.05,1.5698]
[1734861954674,6.0246,186.19,186.06,2.8]
[1734861954979,3.3375,186.19,186.06,2.8]
[1734861955178,3.3375,186.19,186.09,2.6884]
[1734861955479,3.3375,186.19,186.06,25.59671262]
[1734861955873,3.3375,186.19,186.14,2.6878]
[1734861956581,3.3375,186.19,186.06,25.59671262]
[1734861957481,6.1375,186.19,186.06,25.59671262]
[1734861957980,22.79671262,186.17,186.0,22.79671262]
[1734861958180,4.2824,186.16,186.09,2.6885]
[1734861958380,4.2824,186.16,186.01,2.8]
[1734861958381,1.5948,186.16,186.01,2.8]
[1734861958682,1.5948,186.16,186.1,2.6883]
[1734861959881,4.2824,186.16,186.06,2.8]
[1734861960079,1.5948,186.16,186.06,2.8]
[1734861961381,1.5948,186.16,186.09,2.6886]
[1734861961382,4.2824,186.16,186.09,2.6886]
[1734861962080,1.5948,186.16,186.06,2.8]
[1734861962978,1.5948,186.16,186.1,2.6883]
[1734861963378,1.5948,186.16,186.06,2.8]
[1734861963579,1.5948,186.16,186.12,2.6881]
[1734861963787,3.3375,186.19,186.06,25.59671262]
[1734861964085,3.3375,186.19,186.07,5.1006]
[1734861964488,3.3375,186.19,186.1,2.6883]
[1734861964683,3.3375,186.19,186.11,2.8]
[1734861964984,3.3375,186.19,186.15,2.6877]
[1734861965584,6.0246,186.19,186.14,2.6878]
[1734861965881,6.0246,186.19,186.08,2.8]
[1734861965882,22.79671262,186.18,186.08,2.8]
[1734861966087,24.49691262,186.18,186.08,2.8]
[1734861966390,24.49691262,186.18,186.09,2.6885]
[1734861966582,24.49691262,186.18,186.06,2.8]
[1734861967680,2.6876,186.16,186.06,2.8]
[1734861967878,24.49691262,186.18,186.06,2.8]
[1734861967879,1.7002,186.18,186.06,25.59671262]
[1734861968383,1.7002,186.18,186.07,4.9104]
[1734861969388,1.7002,186.18,186.14,2.6878]
[1734861970089,1.7002,186.18,186.12,2.688]
[1734861970288,1.7002,186.18,186.07,4.9104]
[1734861970589,22.79671262,186.24,186.09,22.79671262]
[1734861970785,2.8,186.23,186.09,22.79671262]
[1734861970981,7.7159,186.26,186.09,22.79671262]
[1734861971186,136.18192073,186.27,186.22,2.6867]
[1734861971389,113.38520811,186.27,186.18,2.8]
[1734861971585,2.8,186.28,186.18,2.8]
[1734861971786,5.486,186.28,186.21,2.6868]
[1734861971983,5.486,186.28,186.18,2.8]
[1734861973580,5.486,186.28,186.21,2.6868]
[1734861973781,5.486,186.28,186.18,2.8]
[1734861974189,5.486,186.28,186.23,2.6865]
[1734861974382,2.8,186.28,186.18,2.8]
[1734861974885,2.8,186.28,186.2,2.6869]
[1734861975084,2.6861,186.26,186.2,2.6869]
[1734861976286,2.6861,186.26,186.21,2.6868]
[1734861976891,2.6859,186.28,186.23,2.6865]
[1734861977183,27.71261262,186.33,186.18,2.8]
[1734861977383,22.79671262,186.33,186.18,4.4893]
[1734861977590,22.79671262,186.33,186.27,2.6859]
[1734861978887,8.00918387,186.34,186.23,2.8]
[1734861979086,22.79671262,186.36,186.24,2.8]
[1734861979286,25.59671262,186.36,186.25,2.8]
[1734861979488,28.28151262,186.36,186.31,2.6854]
[1734861979690,25.59671262,186.36,186.25,2.8]
[1734861979884,25.59671262,186.36,186.21,22.79671262]
[1734861980079,22.79671262,186.33,186.22,2.8]
[1734861980580,2.6855,186.31,186.26,2.6861]
[1734861981588,9.7455,186.31,186.26,2.6861]
[1734861981888,2.6857,186.29,186.24,2.6863]
[1734861982888,6.5959,186.28,186.22,2.6866]
[1734861983889,6.5959,186.28,186.2,2.8]
[1734861984089,6.5959,186.28,186.23,2.6865]
[1734861984490,2.6862,186.26,186.21,2.6868]
[1734861984686,3.91,186.28,186.21,2.6868]
[1734861985383,2.6861,186.26,186.21,2.6868]
[1734861985789,3.91,186.28,186.27,2.686]
[1734861987090,1.05535,186.28,186.27,2.686]
[1734861987291,7.06,186.31,186.26,3.2055]
[1734861987493,7.06,186.31,186.3,2.6855]
[1734861988794,7.06,186.31,186.29,2.6857]
[1734861989496,7.06,186.31,186.26,3.2055]
[1734861989690,7.06,186.31,186.28,2.6858]
[1734861990391,7.06,186.31,186.3,2.6855]
[1734861994493,2.8,186.46,186.28,24.43491262]
[1734861994700,2.6832,186.46,186.32,22.79671262]
[1734861994893,28.93471262,186.47,186.33,2.8]
[1734861995100,6.138,186.47,186.41,2.6839]
[1734861995501,6.138,186.47,186.42,2.6838]
[1734861995502,3.338,186.47,186.42,2.6838]
[1734861995905,3.338,186.47,186.3,22.79671262]
[1734861996103,2.6833,186.46,186.39,2.6841]
[1734861996500,2.6833,186.46,186.38,2.8]
[1734861996694,2.6833,186.46,186.4,2.684]
[1734861996899,2.6836,186.44,186.38,2.8]
[1734861997203,2.8,186.46,186.36,2.6846]
[1734861997504,22.79671262,186.44,186.32,2.8]
[1734861997805,1.6427,186.43,186.32,2.8]
[1734861998200,2.6834,186.45,186.32,2.8]
[1734861998506,2.8,186.46,186.36,2.6845]
[1734861998699,2.6835,186.44,186.33,22.79671262]
[1734861998900,2.8,186.46,186.33,22.79671262]
[1734861999502,2.6834,186.45,186.39,2.6841]
[1734862001198,22.79671262,186.5,186.37,2.8]
[1734862001401,2.6833,186.46,186.41,2.6839]
[1734862002206,3.2717,186.52,186.37,2.8]
[1734862002406,1.629,186.52,186.38,1.6484]
[1734862002606,1.629,186.52,186.39,22.79671262]
[1734862002806,1.629,186.52,186.4,1.6747]
[1734862003209,4.28,186.51,186.4,1.6747]
[1734862004010,10.18,186.51,186.4,1.6747]
[1734862005914,2.6827,186.5,186.4,1.6747]
[1734862006321,2.6827,186.5,186.44,2.6834]
[1734862006809,2.6829,186.49,186.43,2.6837]
[1734862007615,12.8625,186.51,186.45,2.6833]
[1734862009626,2.6828,186.5,186.42,2.82]
[1734862010120,10.18,186.51,186.49,2.6828]
[1734862010818,10.18,186.51,186.42,2.82]
[1734862011921,2.6828,186.5,186.45,2.6834]
[1734862012323,10.18,186.51,186.42,2.82]
[1734862012621,10.18,186.51,186.5,2.6827]
[1734862012821,10.18,186.51,186.5,5.5027]
[1734862013030,7.579,186.51,186.5,5.5027]
[1734862013321,5.6798,186.51,186.5,5.5027]
[1734862014626,2.3367,186.51,186.5,5.5027]
[1734862015013,4.9729,186.62,186.57,2.6816]
[1734862015422,1.17,186.61,186.57,2.6816]
[1734862016518,1.17,186.61,186.55,2.82]
[1734862016519,1.17,186.61,186.58,2.6814]
[1734862016714,10.44,186.61,186.58,2.6814]
[1734862017121,10.44,186.61,186.55,2.82]
[1734862017521,10.44,186.61,186.48,22.79671262]
[1734862017715,10.44,186.61,186.49,2.82]
[1734862018217,10.44,186.61,186.55,2.682]
[1734862018824,10.44,186.61,186.48,22.79671262]
[1734862019025,10.44,186.61,186.54,2.6821]
[1734862019224,2.6814,186.6,186.54,2.6821]
[1734862020426,2.6814,186.59,186.54,2.6821]
[1734862024124,10.44,186.61,186.56,2.6818]
[1734862024323,10.44,186.61,186.51,2.82]
[1734862024519,2.6819,186.56,186.51,2.82]
[1734862024829,2.6819,186.56,186.45,22.79671262]
[1734862024830,2.82,186.59,186.45,22.79671262]
[1734862025022,2.32,186.56,186.46,2.82]
[1734862025221,2.32,186.56,186.45,22.79671262]
[1734862025420,5.0018,186.56,186.51,2.6825]
[1734862025617,2.32,186.56,186.46,2.82]
[1734862025923,2.32,186.56,186.54,2.682]
[1734862026226,2.32,186.56,186.46,2.82]
[1734862027223,2.32,186.56,186.55,2.682]
[1734862029318,2.32,186.56,186.5,2.6826]
[1734862029520,2.32,186.56,186.46,2.82]
[1734862029726,2.32,186.56,186.44,58.97369878]
[1734862029929,2.32,186.56,186.44,61.79369878]
[1734862029930,2.82,186.55,186.44,61.79369878]
[1734862030429,2.5845,186.54,186.5,2.6826]
[1734862030627,2.5845,186.54,186.44,2.82]
[1734862030822,0.92,186.54,186.45,22.79671262]
[1734862031724,0.92,186.54,186.47,2.683]
[1734862031923,0.92,186.54,186.45,22.79671262]
[1734862032522,0.92,186.54,186.44,2.82]
[1734862032829,3.442,186.53,186.44,2.82]
[1734862033227,3.442,186.53,186.46,2.6832]
[1734862033228,2.6824,186.52,186.46,2.6832]
[1734862033722,2.6827,186.5,186.44,2.6835]
[1734862033920,1.624,186.52,186.44,2.6835]
[1734862034426,2.683,186.48,186.43,2.6837]
[1734862035226,2.683,186.48,186.35,88.46054817]
[1734862035227,24.42071262,186.52,186.36,22.79671262]
[1734862035526,2.6835,186.45,186.39,2.6843]
[1734862035729,2.84,186.48,186.37,2.84]
[1734862036331,2.6834,186.46,186.4,2.6841]
[1734862036531,2.84,186.48,186.36,22.79671262]
[1734862036726,2.84,186.48,186.36,2.84]
[1734862037631,22.79671262,186.46,186.31,58.97369878]
[1734862038334,22.79671262,186.46,186.34,2.685]
[1734862038732,2.6843,186.39,186.33,2.6851]
[1734862038930,3.3896,186.38,186.27,22.79671262]
[1734862039240,2.84,186.37,186.27,22.79671262]
[1734862039440,4.5694,186.37,186.27,22.79671262]
[1734862039840,7.2541,186.37,186.3,2.6856]
[1734862040035,4.5694,186.37,186.3,2.6856]
[1734862040838,3.3896,186.38,186.24,99.86117603]
[1734862040839,1.7011,186.38,186.31,2.84]
[1734862041139,22.79671262,186.48,186.31,2.84]
[1734862041140,2.84,186.46,186.31,2.84]
[1734862041942,2.6835,186.45,186.39,2.6843]
[1734862043545,5.119,186.47,186.36,2.84]
[1734862044030,5.119,186.47,186.42,2.6838]
[1734862044235,5.119,186.47,186.36,2.84]
[1734862045042,5.119,186.47,186.4,2.6841]
[1734862046843,2.6829,186.49,186.42,2.6838]
[1734862047336,2.6829,186.49,186.43,2.6837]
[1734862047543,1.17,186.48,186.36,2.84]
[1734862047841,1.17,186.48,186.36,25.63671262]
[1734862048037,1.17,186.48,186.46,2.6832]
[1734862048440,1.17,186.48,186.45,2.6834]
[1734862048639,1.17,186.48,186.42,2.84]
[1734862049044,1.17,186.48,186.39,2.6842]
[1734862049244,1.17,186.48,186.38,2.84]
[1734862050543,1.17,186.48,186.39,22.79671262]
[1734862051438,1.17,186.48,186.47,2.6831]
[1734862051639,1.17,186.48,186.44,2.84]
[1734862051840,1.17,186.48,186.42,2.84]
[1734862052037,1.17,186.48,186.41,2.84]
[1734862053444,1.17,186.48,186.44,2.6835]
[1734862054247,1.17,186.48,186.36,22.79671262]
[1734862054452,1.17,186.48,186.37,2.84]
[1734862054644,1.17,186.48,186.36,22.79671262]
[1734862054940,3.853,186.48,186.42,2.6838]
[1734862055738,2.6833,186.46,186.4,2.6841]
[1734862055940,25.63671262,186.45,186.32,61.81369878]
[1734862056142,27.20111262,186.45,186.29,58.97369878]
[1734862056546,27.20111262,186.45,186.3,2.84]
[1734862056747,22.79671262,186.42,186.29,58.97369878]
[1734862056941,2.6846,186.37,186.29,58.97369878]
[1734862057140,2.6846,186.37,186.28,2.84]
[1734862057342,2.6847,186.36,186.28,2.84]
[1734862057942,1.569,186.38,186.23,58.97369878]
[1734862058138,22.79671262,186.36,186.23,61.81369878]
[1734862058447,1.5874,186.35,186.23,2.84]
[1734862058644,2.84,186.34,186.23,2.84]
[1734862058848,2.6853,186.33,186.26,2.686]
[1734862059043,2.6853,186.33,186.23,2.84]
[1734862059350,1.5874,186.35,186.23,2.84]
[1734862060448,1.5874,186.35,186.3,2.6855]
[1734862060648,1.5874,186.35,186.28,2.84]
[1734862060849,2.84,186.37,186.28,2.84]
[1734862061946,22.79671262,186.36,186.24,2.84]
[1734862062652,2.685,186.34,186.28,2.6858]
[1734862064247,22.79671262,186.36,186.26,2.6861]
[1734862064446,32.05671262,186.36,186.18,22.79671262]
[1734862064747,2.6859,186.28,186.22,2.6867]
[1734862065146,2.6861,186.27,186.21,2.6869]
[1734862065345,3.3768,186.29,186.15,58.97369878]
[1734862065551,22.79671262,186.27,186.15,58.97369878]
[1734862065752,25.07671262,186.27,186.15,58.97369878]
[1734862066153,22.79671262,186.24,186.15,58.97369878]
[1734862066352,4.4945,186.23,186.11,2.84]
[1734862066654,2.6873,186.19,186.12,2.6881]
[1734862066851,2.6873,186.19,186.08,61.81369878]
[1734862067160,2.84,186.21,186.08,61.81369878]
[1734862067349,2.84,186.21,186.11,2.6882]
[1734862067555,2.84,186.21,186.08,61.81369878]
[1734862068056,2.6872,186.19,186.13,2.688]
[1734862069353,1.6391,186.2,186.03,55.82]
[1734862069553,1.6391,186.2,186.01,58.97369878]
[1734862069554,1.6698,186.19,186.02,22.79671262]
[1734862069758,22.79671262,186.18,186.03,2.84]
[1734862069949,1.6698,186.19,186.05,2.6891]
[1734862069950,2.6881,186.13,186.05,2.6891]
[1734862070149,2.84,186.14,186.0,61.81369878]
[1734862070453,4.4882,186.14,186.0,61.81369878]
[1734862070652,22.79671262,186.12,186.01,2.6896]
[1734862070848,25.63671262,186.12,186.0,58.97369878]
[1734862071252,28.32501262,186.12,186.0,58.97369878]
[1734862071455,28.32501262,186.12,185.97,2.84]
[1734862071646,25.63671262,186.12,185.97,2.84]
[1734862071951,1.7118,186.11,186.03,2.6894]
[1734862072350,2.6886,186.09,186.02,2.6895]
[1734862072757,1.7118,186.11,186.0,2.84]
[1734862073055,1.7118,186.11,186.05,2.6891]
[1734862073853,1.6482,186.14,186.0,2.84]
[1734862074056,1.6482,186.14,186.02,22.79671262]
[1734862074258,1.6482,186.14,186.03,2.84]
[1734862074456,2.84,186.17,186.03,2.84]
[1734862075463,2.84,186.17,186.11,2.6883]
[1734862075757,2.84,186.17,186.03,2.84]
[1734862075964,2.84,186.17,186.07,2.6889]
[1734862076163,2.84,186.17,186.03,2.84]
[1734862076566,1.663,186.18,186.05,22.79671262]
[1734862077264,1.663,186.18,186.13,2.6879]
[1734862077463,1.663,186.18,186.1,2.84]
[1734862077663,22.79671262,186.21,186.14,2.6879]
[1734862078160,22.79671262,186.21,186.15,2.6877]
[1734862078367,2.84,186.22,186.15,2.6877]
[1734862078762,2.6869,186.21,186.13,2.6879]
[1734862078964,22.79671262,186.21,186.11,2.84]
[1734862079661,2.6873,186.18,186.12,2.6881]
[1734862079866,22.79671262,186.21,186.11,2.84]
[1734862080267,22.79671262,186.21,186.14,2.6879]
[1734862080862,25.48361262,186.21,186.14,2.6879]
[1734862081667,25.48361262,186.21,186.15,2.6877]
[1734862082465,26.23971262,186.24,186.11,2.84]
[1734862082866,29.07971262,186.24,186.11,2.84]
[1734862083266,29.07971262,186.24,186.18,2.6873]
[1734862084272,1.7288,186.25,186.21,2.6869]
[1734862084775,1.7288,186.25,186.19,2.687]
[1734862084970,1.17,186.24,186.16,2.84]
[1734862085170,1.17,186.24,186.15,2.84]
[1734862086375,2.6869,186.21,186.15,2.6877]
[1734862086674,2.84,186.23,186.11,2.84]
[1734862086976,5.5267,186.23,186.17,2.6874]
[1734862087183,1.17,186.24,186.16,2.84]
[1734862087470,1.17,186.24,186.17,22.79671262]
[1734862087672,1.17,186.24,186.23,2.6866]
[1734862088069,1.17,186.24,186.21,2.6868]
[1734862088672,1.17,186.24,186.18,2.84]
[1734862090074,1.17,186.24,186.21,2.6868]
[1734862090268,1.17,186.24,186.18,2.84]
[1734862090471,1.17,186.24,186.23,2.6866]
[1734862091974,1.17,186.24,186.17,2.84]
[1734862092270,1.17,186.24,186.16,2.84]
[1734862092472,2.6867,186.23,186.16,2.6875]
[1734862092671,1.17,186.24,186.15,2.84]
[1734862092870,2.84,186.23,186.13,2.84]
[1734862093275,5.11,186.23,186.13,2.84]
[1734862094374,2.6869,186.21,186.15,2.6876]
[1734862094573,5.11,186.23,186.11,2.84]
[1734862094773,1.6449,186.22,186.11,2.84]
[1734862094977,3.2281,186.21,186.11,2.84]
[1734862095977,3.2281,186.21,186.17,2.6873]
[1734862096372,2.27,186.23,186.2,2.6869]
[1734862096573,2.27,186.23,186.16,2.84]
[1734862097872,2.27,186.23,186.2,2.687]
[1734862099371,2.27,186.23,186.18,2.6872]
[1734862099574,2.27,186.23,186.11,58.97369878]
[1734862099771,2.27,186.23,186.12,2.84]
[1734862099968,2.27,186.23,186.16,2.6876]
[1734862100570,2.6868,186.22,186.17,2.6874]
[1734862100781,2.27,186.23,186.12,2.84]
[1734862100973,2.27,186.23,186.12,25.63671262]
[1734862101473,2.27,186.23,186.2,2.6869]
[1734862101978,2.27,186.23,186.17,2.84]
[1734862102671,2.27,186.23,186.22,2.6867]
[1734862103075,3.17,186.23,186.22,2.6867]
[1734862103681,3.17,186.23,186.17,2.84]
[1734862103872,3.17,186.23,186.18,2.6872]
[1734862104685,3.17,186.23,186.17,5.5274]
[1734862104875,3.17,186.23,186.17,2.84]
[1734862105179,5.8567,186.23,186.17,5.5274]
[1734862105385,3.17,186.23,186.17,2.84]
[1734862106783,3.17,186.23,186.12,22.79671262]
[1734862106981,3.17,186.23,186.13,2.84]
[1734862107282,3.17,186.23,186.15,22.79671262]
[1734862107676,3.17,186.23,186.22,2.6867]
[1734862108279,3.17,186.23,186.2,2.687]
[1734862108585,3.17,186.23,186.19,2.84]
[1734862109484,3.17,186.23,186.21,2.6868]
[1734862111289,3.17,186.23,186.2,2.687]
[1734862111588,3.17,186.23,186.19,2.84]
[1734862112387,3.17,186.23,186.21,2.6867]
[1734862113788,3.17,186.23,186.17,2.84]
[1734862114187,5.8567,186.23,186.14,58.97369878]
[1734862114388,3.17,186.23,186.14,58.97369878]
[1734862114589,3.17,186.23,186.15,2.6876]
[1734862114789,2.6869,186.21,186.14,58.97369878]
[1734862115390,2.6869,186.21,186.14,2.6878]
[1734862115590,2.6869,186.21,186.12,2.84]
[1734862116190,2.6869,186.21,186.16,2.6876]
[1734862119196,2.6869,186.21,186.17,2.6874]
[1734862119593,1.7031,186.2,186.17,2.6874]
[1734862120199,1.7031,186.2,186.16,2.6876]
[1734862122100,1.7031,186.2,186.19,2.6872]
[1734862122300,3.17,186.23,186.19,2.6872]
[1734862122503,0.9,186.23,186.19,2.6872]
[1734862122703,10.16,186.23,186.12,2.84]
[1734862123401,2.6869,186.21,186.15,2.6877]
[1734862123601,2.6869,186.21,186.12,2.84]
[1734862123807,26.37806644,186.23,186.09,58.97369878]
[1734862124002,2.6874,186.18,186.1,2.78]
[1734862124407,1.17,186.17,186.1,2.78]
[1734862126704,3.8575,186.17,186.12,2.6882]
[1734862127302,1.17,186.17,186.06,77.13764261]
[1734862127500,1.6545,186.16,186.05,58.97369878]
[1734862127703,2.78,186.15,186.05,58.97369878]
[1734862128005,1.6545,186.16,186.05,58.97369878]
[1734862128711,1.6545,186.16,186.04,13.96806644]
[1734862129102,2.6877,186.15,186.09,2.6885]
[1734862130208,1.6545,186.16,186.07,2.78]
[1734862130508,1.17,186.17,186.07,16.74806644]
[1734862130910,1.17,186.17,186.14,2.6879]
[1734862132507,1.17,186.17,186.13,2.688]
[1734862136311,1.17,186.17,186.14,2.6879]
[1734862136512,2.6873,186.19,186.14,2.6879]
[1734862138014,2.6873,186.18,186.13,2.6879]
[1734862138215,3.3614,186.2,186.12,2.78]
[1734862138610,3.3614,186.2,186.07,13.96806644]
[1734862138817,2.6875,186.17,186.12,2.688]
[1734862139319,0.89,186.16,186.12,2.688]
[1734862139715,0.89,186.16,186.13,2.688]
[1734862139910,3.5776,186.16,186.04,58.97369878]
[1734862140116,3.5776,186.16,186.05,2.78]
[1734862140316,3.5776,186.16,186.1,2.6884]
[1734862140622,3.5776,186.16,186.05,2.78]
[1734862140623,0.89,186.16,186.05,2.78]
[1734862140815,0.89,186.16,186.14,2.6878]
[1734862141213,0.89,186.16,186.1,2.78]
[1734862141521,0.89,186.16,186.15,2.6877]
[1734862141710,0.89,186.16,186.15,5.4677]
[1734862146213,0.89,186.16,186.15,2.78]
[1734862146923,0.89,186.16,186.09,72.94176522]
[1734862147117,0.89,186.16,186.1,2.78]
[1734862147322,0.89,186.16,186.09,58.97369878]
[1734862147524,0.89,186.16,186.11,2.6882]
[1734862147720,0.89,186.16,186.1,2.78]
[1734862148023,0.89,186.16,186.13,2.688]
[1734862148920,0.89,186.16,186.1,2.78]
[1734862149320,0.89,186.16,186.12,13.96806644]
[1734862149517,0.89,186.16,186.15,2.6877]
[1734862149724,3.2092,186.26,186.15,16.74806644]
[1734862149922,1.6764,186.29,186.15,16.74806644]
[1734862150123,1.6764,186.29,186.25,2.6862]
[1734862150324,10.9264,186.29,186.21,2.78]
[1734862150528,9.25,186.29,186.21,16.74806644]
[1734862151627,9.25,186.29,186.25,2.6862]
[1734862152629,9.25,186.29,186.21,16.74806644]
[1734862152831,9.25,186.29,186.28,2.6859]
[1734862153038,9.25,186.29,186.28,5.4659]
[1734862153536,10.42,186.29,186.28,5.4659]
[1734862153933,12.67,186.29,186.28,5.4659]
[1734862158641,12.67,186.29,186.28,2.6859]
[1734862159042,12.67,186.29,186.21,13.96806644]
[1734862159237,12.67,186.29,186.27,2.686]
[1734862162641,12.67,186.29,186.28,2.6859]
[1734862168345,12.67,186.29,186.25,2.78]
[1734862168849,12.67,186.29,186.27,2.6859]
[1734862169044,12.67,186.29,186.16,58.97369878]
[1734862169239,12.67,186.29,186.17,2.78]
[1734862169447,3.243,186.28,186.17,2.78]
[1734862169847,3.243,186.28,186.25,2.6863]
[1734862170449,9.25,186.29,186.22,2.78]
[1734862170748,1.16,186.28,186.22,2.78]
[1734862170945,1.16,186.28,186.27,2.686]
[1734862171346,1.16,186.28,186.27,5.466]
[1734862174853,1.16,186.28,186.27,2.686]
[1734862175657,1.16,186.28,186.26,5.4661]
[1734862175862,1.16,186.28,186.26,2.78]
[1734862176452,2.6862,186.26,186.18,58.97369878]
[1734862176658,3.3612,186.25,186.2,2.6869]
[1734862176852,3.3612,186.25,186.19,2.78]
[1734862177549,3.3612,186.25,186.21,2.6868]
[1734862177753,3.3612,186.25,186.19,2.78]
[1734862178555,3.3612,186.25,186.21,2.6868]
[1734862180954,3.3612,186.25,186.18,2.78]
[1734862181563,6.0475,186.25,186.12,72.94176522]
[1734862181757,6.0475,186.25,186.13,2.78]
[1734862182562,6.0475,186.25,186.17,2.6873]
[1734862182961,3.3612,186.25,186.18,2.78]
[1734862183463,3.3612,186.25,186.22,2.6867]
[1734862183759,3.3612,186.25,186.18,2.78]
[1734862183966,3.3612,186.25,186.21,2.6868]
[1734862184262,3.3612,186.25,186.18,2.78]
[1734862185262,2.24,186.29,186.27,2.686]
[1734862185561,2.24,186.29,186.25,2.78]
[1734862185965,1.16,186.28,186.26,2.6862]
[1734862186267,1.16,186.28,186.25,2.78]
[1734862187663,1.16,186.28,186.25,5.4662]
[1734862190374,1.16,186.28,186.25,2.78]